bitfinex/quotes_BTCUSD_20230403
["timestamp","ask_amount","ask_price","bid_price","bid_amount"]
[1680564894826,1.266374,27791.0,27790.0,0.52803195]
[1680564895050,1.266374,27791.0,27783.0,0.0208]
[1680564895051,0.15,27787.0,27783.0,0.0208]
[1680564895283,0.40168493,27784.0,27783.0,0.0208]
[1680564895507,0.59441474,27784.0,27783.0,0.0208]
[1680564895727,0.46101793,27784.0,27783.0,0.0208]
[1680564895956,0.44531993,27784.0,27783.0,0.0208]
[1680564896431,0.45381993,27784.0,27783.0,0.0058]
[1680564896665,0.53278972,27784.0,27783.0,0.0058]
[1680564896922,0.04185748,27784.0,27783.0,0.0058]
[1680564897144,0.29699524,27784.0,27783.0,0.0058]
[1680564897395,0.46889524,27784.0,27783.0,0.0058]
[1680564897581,0.39078224,27784.0,27781.0,0.0166]
[1680564897832,0.0862,27782.0,27781.0,0.0166]
[1680564898740,0.0862,27782.0,27781.0,0.38570559]
[1680564898959,0.0862,27782.0,27781.0,0.01678]
[1680564899194,0.29048387,27782.0,27781.0,0.0166]
[1680564900476,0.31648387,27782.0,27781.0,0.0166]
[1680564901145,0.35821801,27782.0,27781.0,0.0166]
[1680564901364,0.41021501,27782.0,27781.0,0.0166]
[1680564901546,0.31648387,27782.0,27781.0,0.0166]
[1680564902202,0.026,27782.0,27781.0,0.0166]
[1680564902497,0.026,27782.0,27781.0,0.44117747]
[1680564902732,0.026,27782.0,27781.0,0.38511493]
[1680564902959,0.026,27782.0,27781.0,0.10964255]
[1680564903184,0.01485748,27787.0,27782.0,0.33514252]
[1680564903410,0.01485748,27787.0,27783.0,0.053988]
[1680564903858,0.01485748,27787.0,27783.0,0.203988]
[1680564904780,0.01785748,27787.0,27785.0,0.053985]
[1680564905012,0.01785748,27787.0,27783.0,0.15]
[1680564905230,0.01785748,27787.0,27781.0,0.19678]
[1680564905231,0.01485748,27783.0,27781.0,0.19678]
[1680564905453,0.01485748,27784.0,27782.0,0.061792]
[1680564906351,0.01485748,27784.0,27782.0,0.42677611]
[1680564906558,0.01485748,27784.0,27783.0,0.32980435]
[1680564906777,0.01485748,27784.0,27782.0,0.025798]
[1680564906992,0.01485748,27784.0,27782.0,0.025797]
[1680564907224,0.01485748,27784.0,27781.0,0.1966]
[1680564907438,0.01585748,27784.0,27783.0,0.3489519]
[1680564907678,0.01485748,27784.0,27783.0,0.3489519]
[1680564908547,0.01485748,27784.0,27783.0,0.3669479]
[1680564909031,0.01485748,27784.0,27783.0,0.3489519]
[1680564909250,0.0003,27787.0,27783.0,0.3746109]
[1680564909462,0.02285748,27784.0,27783.0,0.3756709]
[1680564909678,0.01485748,27784.0,27783.0,0.3746709]
[1680564909908,0.0003,27788.0,27783.0,0.45241556]
[1680564909909,0.01515748,27788.0,27783.0,0.45241556]
[1680564910126,0.01515748,27788.0,27785.0,0.053985]
[1680564910127,0.01485748,27788.0,27785.0,0.053985]
[1680564910578,0.01485748,27788.0,27786.0,0.35471056]
[1680564910799,0.01485748,27788.0,27787.0,0.017994]
[1680564911016,0.21836413,27788.0,27784.0,0.45899305]
[1680564911235,0.15705429,27788.0,27784.0,0.45899305]
[1680564911456,0.15705429,27788.0,27784.0,0.47698805]
[1680564911457,0.01485748,27788.0,27784.0,0.47698805]
[1680564911677,0.01485748,27788.0,27784.0,0.36586874]
[1680564911896,0.02285748,27788.0,27785.0,0.151]
[1680564912119,0.01485748,27788.0,27786.0,0.007443]
[1680564912775,0.02285748,27788.0,27786.0,0.46011394]
[1680564913042,0.01485748,27788.0,27786.0,0.45267094]
[1680564913257,0.02285748,27788.0,27786.0,0.45367094]
[1680564913469,0.01485748,27788.0,27786.0,0.45267094]
[1680564913687,0.01485748,27788.0,27787.0,0.41489525]
[1680564913916,0.01485748,27791.0,27787.0,0.48720218]
[1680564914134,0.01485748,27791.0,27787.0,0.44031425]
[1680564914568,0.01485748,27791.0,27788.0,0.15]
[1680564914785,0.01515748,27794.0,27789.0,0.053977]
[1680564915061,0.001,27791.0,27789.0,0.053977]
[1680564915320,0.01485748,27794.0,27790.0,0.45194015]
[1680564915640,0.01485748,27794.0,27791.0,0.167991]
[1680564916639,0.01485748,27794.0,27791.0,0.52270156]
[1680564917407,0.01485748,27794.0,27793.0,0.01799]
[1680564917680,0.01585748,27794.0,27793.0,0.37270056]
[1680564917968,0.01485748,27794.0,27793.0,0.76360915]
[1680564918433,0.01585748,27794.0,27793.0,0.76360915]
[1680564918436,0.01485748,27794.0,27793.0,0.76360915]
[1680564918709,0.01485748,27794.0,27793.0,0.76660915]
[1680564919245,0.01485748,27794.0,27793.0,0.94660915]
[1680564919803,0.01485748,27795.0,27793.0,0.94660915]
[1680564920582,0.01485748,27795.0,27794.0,0.70640368]
[1680564920852,0.01485748,27795.0,27794.0,0.72439268]
[1680564921110,0.01485748,27795.0,27794.0,0.70640368]
[1680564922223,0.01785748,27795.0,27794.0,0.70640368]
[1680564923154,0.01485748,27795.0,27794.0,0.70640368]
[1680564923390,0.01485748,27795.0,27793.0,0.18]
[1680564923632,0.16035129,27795.0,27793.0,0.18]
[1680564923863,0.03550911,27795.0,27793.0,0.18]
[1680564924105,0.05008,27794.0,27793.0,0.18]
[1680564924341,0.01845448,27795.0,27793.0,0.18]
[1680564924585,0.01585748,27795.0,27794.0,0.016]
[1680564924813,0.01485748,27795.0,27793.0,0.18]
[1680564925035,0.01485748,27795.0,27793.0,0.5770175]
[1680564925286,0.01485748,27795.0,27793.0,0.183]
[1680564925514,0.01845448,27795.0,27793.0,0.183]
[1680564925758,0.01485748,27795.0,27793.0,0.183]
[1680564925983,0.01474938,27795.0,27793.0,0.183]
[1680564926236,0.01474938,27795.0,27793.0,0.186]
[1680564926475,0.01474938,27795.0,27793.0,0.18]
[1680564926931,0.01474938,27795.0,27793.0,0.17991889]
[1680564927839,0.01774938,27795.0,27793.0,0.17991889]
[1680564930359,0.01474938,27795.0,27793.0,0.17991889]
[1680564930803,0.01474938,27795.0,27794.0,0.42785915]
[1680564931014,0.01474938,27795.0,27794.0,0.42034315]
[1680564931461,0.01474938,27795.0,27794.0,0.42810815]
[1680564931906,0.01474938,27795.0,27794.0,0.41025115]
[1680564932352,0.02174938,27795.0,27794.0,0.41025115]
[1680564932575,0.01474938,27795.0,27794.0,0.41025115]
[1680564933019,0.05457103,27795.0,27794.0,0.41025115]
[1680564933238,0.05457103,27795.0,27794.0,0.41325115]
[1680564933469,0.06157103,27795.0,27794.0,0.41425115]
[1680564933727,0.06157103,27795.0,27794.0,0.47368615]
[1680564933945,0.05457103,27795.0,27794.0,0.41025115]
[1680564934165,0.05457103,27795.0,27794.0,0.41325115]
[1680564935120,0.01474938,27795.0,27794.0,0.41325115]
[1680564935807,0.01474938,27795.0,27794.0,0.41025115]
[1680564936253,0.01474938,27795.0,27794.0,0.76496171]
[1680564936478,0.01474938,27795.0,27794.0,0.76796171]
[1680564937595,0.01474938,27795.0,27794.0,0.76496171]
[1680564939383,0.01574938,27795.0,27794.0,0.78096171]
[1680564939809,0.01474938,27795.0,27794.0,0.76496171]
[1680564940032,0.01574938,27795.0,27794.0,0.78796171]
[1680564940245,0.01474938,27795.0,27794.0,0.76496171]
[1680564940467,0.01574938,27795.0,27794.0,0.78096171]
[1680564941862,0.01474938,27795.0,27794.0,0.76496171]
[1680564942073,0.01574938,27795.0,27794.0,0.78096171]
[1680564942353,0.01474938,27795.0,27794.0,0.76496171]
[1680564942687,0.01574938,27795.0,27794.0,0.78096171]
[1680564942909,0.01474938,27795.0,27794.0,0.76496171]
[1680564943174,0.01574938,27795.0,27794.0,0.78096171]
[1680564943399,0.01574938,27795.0,27794.0,0.76496171]
[1680564943626,0.01674938,27795.0,27794.0,0.78096171]
[1680564943856,0.01474938,27795.0,27794.0,0.76496171]
[1680564944891,0.01574938,27795.0,27794.0,0.78096171]
[1680564945171,0.01474938,27795.0,27794.0,0.77496171]
[1680564945430,0.01574938,27795.0,27794.0,0.76496171]
[1680564945654,0.01574938,27795.0,27794.0,0.77496171]
[1680564945892,0.01574938,27795.0,27794.0,0.76496171]
[1680564946110,0.01474938,27795.0,27794.0,0.76496171]
[1680564946331,0.01574938,27795.0,27794.0,0.77496171]
[1680564946567,0.01474938,27795.0,27794.0,0.76496171]
[1680564946815,0.01474938,27795.0,27794.0,0.77496171]
[1680564946816,0.01574938,27795.0,27794.0,0.77496171]
[1680564947498,0.01474938,27795.0,27794.0,0.76496171]
[1680564947985,0.01474938,27795.0,27794.0,0.90281577]
[1680564948207,0.01574938,27795.0,27794.0,0.91281577]
[1680564948657,0.01474938,27795.0,27794.0,0.90281577]
[1680564948872,0.01574938,27795.0,27794.0,0.79295071]
[1680564949347,0.01474938,27795.0,27794.0,0.78295071]
[1680564949570,0.01574938,27795.0,27794.0,0.79295071]
[1680564951996,0.01574938,27795.0,27794.0,0.87496171]
[1680564952206,0.01574938,27795.0,27794.0,0.42025115]
[1680564953533,0.01934638,27795.0,27794.0,0.01]
[1680564953780,0.01574938,27795.0,27794.0,0.40846238]
[1680564954008,0.01574938,27795.0,27794.0,0.41625438]
[1680564954951,0.01574938,27795.0,27794.0,0.43424338]
[1680564955178,0.01574938,27795.0,27794.0,0.41625438]
[1680564956069,0.01564481,27795.0,27794.0,0.41625438]
[1680564956547,0.01564481,27795.0,27794.0,0.4892615]
[1680564956776,0.001,27795.0,27794.0,0.54909868]
[1680564957006,0.001,27795.0,27794.0,0.67659714]
[1680564957212,0.001,27795.0,27794.0,0.82659714]
[1680564957470,0.001,27795.0,27794.0,0.9981316]
[1680564957708,0.001,27795.0,27794.0,0.87069314]
[1680564957978,0.02995353,27802.0,27796.0,0.18535519]
[1680564958214,0.02995353,27802.0,27797.0,0.45879756]
[1680564958659,0.02995353,27802.0,27798.0,0.15]
[1680564958899,0.02995353,27802.0,27798.0,0.167986]
[1680564959127,0.04004001,27801.0,27798.0,0.017986]
[1680564959350,0.04004001,27801.0,27798.0,0.167986]
[1680564959802,0.04004001,27801.0,27799.0,0.44518967]
[1680564960030,0.04004001,27801.0,27799.0,0.46317567]
[1680564960745,0.04004001,27801.0,27799.0,0.47917567]
[1680564960973,0.04004001,27801.0,27800.0,0.15]
[1680564961203,0.04004001,27801.0,27799.0,0.47917567]
[1680564961415,0.04004001,27801.0,27800.0,0.0856]
[1680564961647,0.04004001,27801.0,27800.0,0.103585]
[1680564961871,0.04004001,27801.0,27800.0,0.253585]
[1680564962336,0.04004001,27801.0,27800.0,0.9380449]
[1680564963365,0.04004001,27801.0,27800.0,0.61729556]
[1680564963625,0.04004001,27801.0,27800.0,0.69764032]
[1680564963888,0.05468482,27801.0,27800.0,1.23513491]
[1680564964142,0.01464481,27801.0,27800.0,1.23513491]
[1680564964491,0.01464481,27801.0,27800.0,1.16074032]
[1680564964628,0.01464481,27801.0,27800.0,1.51571702]
[1680564964857,0.01464481,27801.0,27800.0,1.54371702]
[1680564965318,0.01464481,27801.0,27800.0,1.17974032]
[1680564965544,0.01464481,27801.0,27800.0,1.53226846]
[1680564965776,0.01464481,27801.0,27800.0,1.50426846]
[1680564966003,0.01464481,27801.0,27800.0,1.53226846]
[1680564966219,0.01464481,27801.0,27800.0,1.50426846]
[1680564966429,0.01464481,27801.0,27800.0,1.53226846]
[1680564966645,0.01464481,27801.0,27800.0,1.17974032]
[1680564966879,0.01464481,27801.0,27800.0,1.64614007]
[1680564967818,0.02288,27805.0,27800.0,1.61490274]
[1680564968032,0.01464481,27804.0,27802.0,0.2361]
[1680564968269,0.01464481,27804.0,27803.0,0.37269356]
[1680564969158,0.01464481,27804.0,27803.0,0.52269356]
[1680564969574,0.01464481,27804.0,27803.0,0.55069356]
[1680564969837,0.03053864,27804.0,27803.0,0.028]
[1680564970287,0.01464481,27804.0,27803.0,0.028]
[1680564970703,0.01464481,27804.0,27803.0,0.40041509]
[1680564970933,0.01464481,27804.0,27803.0,0.498848]
[1680564970934,0.00464481,27804.0,27803.0,0.498848]
[1680564971154,0.04937666,27804.0,27803.0,0.498848]
[1680564971611,0.04937666,27804.0,27803.0,0.75512565]
[1680564971832,0.04937666,27804.0,27803.0,0.74510865]
[1680564972055,0.00464481,27804.0,27803.0,0.77310865]
[1680564972313,0.01674119,27805.0,27803.0,0.72310865]
[1680564972540,0.01674119,27805.0,27804.0,0.35471056]
[1680564972950,0.01674119,27805.0,27804.0,0.73250144]
[1680564973213,0.01674119,27805.0,27804.0,0.83695988]
[1680564973477,0.01674119,27805.0,27804.0,0.87694288]
[1680564973695,0.01674119,27805.0,27804.0,0.85895988]
[1680564975042,0.01674119,27805.0,27804.0,0.83695988]
[1680564975262,0.01674119,27805.0,27804.0,0.85195988]
[1680564976158,0.01674119,27805.0,27804.0,0.83695988]
[1680564976596,0.01674119,27805.0,27804.0,0.85195988]
[1680564976828,0.01674119,27805.0,27804.0,0.73250144]
[1680564977694,0.01674119,27805.0,27804.0,0.74750144]
[1680564977916,0.01674119,27805.0,27804.0,0.73250144]
[1680564978136,0.01674119,27805.0,27804.0,0.74750144]
[1680564978569,0.01674119,27805.0,27804.0,0.73250144]
[1680564978787,0.01674119,27805.0,27804.0,0.74750144]
[1680564979008,0.01674119,27805.0,27804.0,0.74015544]
[1680564979196,0.01674119,27805.0,27804.0,0.75515544]
[1680564979473,0.01674119,27805.0,27804.0,0.015]
[1680564979719,0.12259717,27805.0,27804.0,0.015]
[1680564980050,0.01674119,27805.0,27804.0,0.015]
[1680564980587,0.07453802,27805.0,27803.0,0.62619778]
[1680564980826,0.07453802,27805.0,27804.0,0.015]
[1680564981048,0.32958004,27805.0,27803.0,0.18]
[1680564981281,0.32958004,27805.0,27804.0,0.015]
[1680564981282,0.27620904,27805.0,27804.0,0.015]
[1680564981508,0.32881404,27805.0,27803.0,0.18]
[1680564981736,0.052385,27804.0,27803.0,0.18]
[1680564981973,0.0003,27804.0,27803.0,0.18]
[1680564982682,0.0003,27804.0,27803.0,0.2497382]
[1680564982904,0.01674119,27805.0,27804.0,0.33647876]
[1680564983579,0.01674119,27805.0,27804.0,0.35446176]
[1680564984056,0.01674119,27805.0,27804.0,0.38246176]
[1680564984735,0.01674119,27805.0,27804.0,0.38977576]
[1680564985200,0.01674119,27805.0,27804.0,0.43236704]
[1680564985422,0.01674119,27805.0,27804.0,0.42505304]
[1680564985643,0.01674119,27805.0,27804.0,0.36447876]
[1680564986312,0.01674119,27805.0,27804.0,0.71918932]
[1680564987091,0.01674119,27805.0,27804.0,0.028]
[1680564987323,0.06440615,27805.0,27804.0,0.028]
[1680564987771,0.06440615,27805.0,27803.0,0.18]
[1680564987997,0.06440615,27805.0,27804.0,0.022]
[1680564988224,0.06440615,27805.0,27803.0,0.18]
[1680564989334,0.06436601,27804.0,27803.0,0.18]
[1680564989548,0.11743001,27804.0,27803.0,0.18]
[1680564989981,0.06466601,27804.0,27803.0,0.202]
[1680564990194,0.11759401,27804.0,27803.0,0.202]
[1680564990452,0.11759401,27804.0,27803.0,0.18]
[1680564990661,0.11959401,27804.0,27803.0,0.18]
[1680564990884,0.11759401,27804.0,27803.0,0.18]
[1680564991107,0.11959401,27804.0,27803.0,0.18]
[1680564992095,0.06666601,27804.0,27803.0,0.18]
[1680564992358,0.11594701,27804.0,27803.0,0.18]
[1680564992617,0.11833201,27804.0,27803.0,0.18]
[1680564993311,0.06666601,27804.0,27803.0,0.18]
[1680564993436,0.11873801,27804.0,27803.0,0.18]
[1680564993654,0.06666601,27804.0,27803.0,0.18]
[1680564993852,0.12079101,27804.0,27803.0,0.18]
[1680564994053,0.11879101,27804.0,27803.0,0.18]
[1680564994273,0.12079101,27804.0,27803.0,0.18]
[1680564994505,0.11879101,27804.0,27803.0,0.18]
[1680564994718,0.06466601,27804.0,27803.0,0.18]
[1680564994937,0.11802001,27804.0,27803.0,0.18]
[1680564995809,0.12002001,27804.0,27803.0,0.18]
[1680564996030,0.06466601,27804.0,27803.0,0.18]
[1680564996232,0.11755901,27804.0,27803.0,0.18]
[1680564996449,0.06466601,27804.0,27803.0,0.18]
[1680564996657,0.0003,27804.0,27803.0,0.18]
[1680564996879,0.0003,27804.0,27803.0,0.55154259]
[1680564996880,0.002,27804.0,27803.0,0.55154259]
[1680564997101,0.01674119,27805.0,27803.0,0.61029375]
[1680564997331,0.01674119,27805.0,27804.0,8.442e-05]
[1680564997549,0.01674119,27805.0,27804.0,0.01806742]
[1680564997994,0.06690807,27805.0,27804.0,0.02556842]
[1680564998223,0.06690807,27805.0,27804.0,0.01806742]
[1680564998436,0.06690807,27805.0,27804.0,0.02557642]
[1680564998880,0.06690807,27805.0,27804.0,0.44820209]
[1680564999106,0.06690807,27805.0,27804.0,0.42620209]
[1680564999327,0.06690807,27805.0,27804.0,0.43577409]
[1680564999540,0.06690807,27805.0,27804.0,0.43377409]
[1680564999759,0.06690807,27805.0,27804.0,0.45577409]
[1680565000218,0.06690807,27805.0,27804.0,0.43377409]
[1680565001143,0.06690807,27805.0,27804.0,0.43577409]
[1680565001338,0.06690807,27805.0,27804.0,0.42620209]
[1680565001547,0.06690807,27805.0,27804.0,0.44820209]
[1680565001818,0.06690807,27805.0,27804.0,0.43344009]
[1680565002145,0.06684283,27805.0,27804.0,0.43544009]
[1680565002372,0.06684283,27805.0,27804.0,0.43344009]
[1680565002592,0.06684283,27805.0,27804.0,0.45544009]
[1680565003893,0.06684283,27805.0,27804.0,0.43344009]
[1680565004098,0.06684283,27805.0,27804.0,0.43544009]
[1680565004321,0.06684283,27805.0,27804.0,0.43344009]
[1680565004534,0.06684283,27805.0,27804.0,0.45544009]
[1680565004961,0.06684283,27805.0,27804.0,0.43344009]
[1680565005166,0.06684283,27805.0,27804.0,0.43544009]
[1680565005383,0.06684283,27805.0,27804.0,0.43344009]
[1680565005994,0.06684283,27805.0,27804.0,0.45544009]
[1680565006761,0.13238301,27805.0,27804.0,0.02208442]
[1680565007023,0.13238301,27805.0,27804.0,8.442e-05]
[1680565007279,0.13238301,27805.0,27804.0,0.00208442]
[1680565010540,0.06684283,27805.0,27804.0,0.00208442]
[1680565010762,0.06684283,27805.0,27804.0,0.41961951]
[1680565012606,0.06684283,27805.0,27804.0,0.41761951]
[1680565013185,0.06684283,27805.0,27804.0,0.41961951]
[1680565014013,0.06684283,27805.0,27804.0,0.43760251]
[1680565015204,0.06684283,27805.0,27804.0,0.44502151]
[1680565017845,0.06684283,27805.0,27804.0,0.79973207]
[1680565020271,0.06684283,27805.0,27804.0,0.41961951]
[1680565021421,0.06684283,27805.0,27804.0,0.00208442]
[1680565021634,0.06684283,27805.0,27803.0,0.56235566]
[1680565022981,0.06684283,27805.0,27803.0,0.57135566]
[1680565023641,0.06684283,27805.0,27804.0,0.007306]
[1680565023866,0.06684283,27805.0,27804.0,0.35257061]
[1680565024311,0.06684283,27805.0,27804.0,0.34526461]
[1680565024523,0.06684283,27805.0,27803.0,0.18808442]
[1680565024739,0.12236403,27805.0,27803.0,0.18808442]
[1680565025667,0.06684283,27805.0,27803.0,0.17908442]
[1680565025883,0.06684283,27805.0,27804.0,0.002]
[1680565026098,0.06684283,27805.0,27803.0,0.17908442]
[1680565026313,0.06684283,27805.0,27803.0,0.18808442]
[1680565028539,0.33051402,27804.0,27803.0,0.18808442]
[1680565028787,0.38621261,27804.0,27803.0,0.18808442]
[1680565029020,0.1747093,27804.0,27803.0,0.18808442]
[1680565029249,0.1749193,27804.0,27803.0,0.18797699]
[1680565029468,0.1225663,27804.0,27803.0,0.17897699]
[1680565029693,0.1265663,27804.0,27803.0,0.17997699]
[1680565030133,0.1730983,27804.0,27803.0,0.17897699]
[1680565030354,0.1741633,27804.0,27803.0,0.17897699]
[1680565030592,0.1228663,27804.0,27803.0,0.17897699]
[1680565030822,0.1225663,27804.0,27803.0,0.17897699]
[1680565031055,0.1265663,27804.0,27803.0,0.17997699]
[1680565031331,0.1761053,27804.0,27803.0,0.17997699]
[1680565031552,0.22386229,27804.0,27803.0,0.17997699]
[1680565031787,0.22416229,27804.0,27803.0,0.17997699]
[1680565031970,0.17462329,27804.0,27803.0,0.17997699]
[1680565032223,0.09332329,27804.0,27803.0,0.17897699]
[1680565032450,0.14942629,27804.0,27803.0,0.17997699]
[1680565032918,0.35086198,27804.0,27803.0,0.17997699]
[1680565033360,0.35116198,27804.0,27803.0,0.17997699]
[1680565034248,0.34936098,27804.0,27803.0,0.17997699]
[1680565034485,0.09762329,27804.0,27803.0,0.17997699]
[1680565034709,0.09732329,27804.0,27803.0,0.17997699]
[1680565034941,0.0495663,27804.0,27803.0,0.17997699]
[1680565035178,0.0495663,27804.0,27803.0,0.56025655]
[1680565035399,0.0495663,27804.0,27803.0,0.79575655]
[1680565036060,0.004,27804.0,27803.0,0.79575655]
[1680565036820,0.004,27804.0,27803.0,0.92502626]
[1680565037103,0.01667595,27805.0,27803.0,0.92502626]
[1680565037104,0.01667595,27805.0,27803.0,1.23304155]
[1680565037335,0.01667595,27805.0,27804.0,0.59101056]
[1680565037634,0.01667595,27805.0,27804.0,0.64495956]
[1680565038588,0.01667595,27805.0,27804.0,1.06132356]
[1680565038853,0.01667595,27805.0,27804.0,0.67295956]
[1680565039084,0.01667595,27805.0,27804.0,1.21796934]
[1680565039747,0.01667595,27805.0,27804.0,0.88478176]
[1680565040738,0.01667595,27805.0,27804.0,1.26514061]
[1680565040964,0.01667595,27805.0,27804.0,1.29535431]
[1680565041196,0.01667595,27805.0,27804.0,0.88478176]
[1680565041645,0.01667595,27805.0,27804.0,1.17082072]
[1680565042112,0.01667595,27805.0,27804.0,0.79848176]
[1680565042537,0.01667595,27805.0,27804.0,1.23594748]
[1680565043644,0.01667595,27805.0,27804.0,0.79848176]
[1680565043854,0.01667595,27805.0,27804.0,1.12945039]
[1680565044076,0.01667595,27805.0,27804.0,1.15745039]
[1680565044336,0.01667595,27805.0,27804.0,0.79848176]
[1680565045218,0.01667595,27805.0,27804.0,1.18369611]
[1680565045437,0.01667595,27805.0,27804.0,0.79848176]
[1680565045650,0.01667595,27805.0,27804.0,1.11147635]
[1680565045860,0.01667595,27805.0,27804.0,0.79848176]
[1680565046301,0.01667595,27805.0,27804.0,0.77048176]
[1680565046519,0.01667595,27805.0,27804.0,0.79848176]
[1680565046732,0.01667595,27805.0,27804.0,1.11184192]
[1680565046989,0.01667595,27805.0,27804.0,0.79848176]
[1680565047201,0.01667595,27805.0,27804.0,0.77048176]
[1680565047414,0.01667595,27805.0,27804.0,1.12865526]
[1680565048059,0.01667595,27805.0,27804.0,1.22706992]
[1680565048275,0.01667595,27805.0,27804.0,1.25506992]
[1680565048504,0.01667595,27805.0,27804.0,1.22706992]
[1680565048726,0.01667595,27805.0,27804.0,0.79848176]
[1680565048935,0.01667595,27805.0,27804.0,0.77048176]
[1680565049144,0.01667595,27805.0,27804.0,0.79848176]
[1680565049356,0.01667595,27805.0,27804.0,1.13261713]
[1680565049570,0.01667595,27805.0,27804.0,1.10461713]
[1680565049803,0.01667595,27805.0,27804.0,0.79848176]
[1680565050231,0.01667595,27805.0,27804.0,0.77048176]
[1680565050448,0.01657411,27805.0,27804.0,0.77054176]
[1680565050691,0.01657411,27805.0,27804.0,0.77048176]
[1680565051103,0.01657411,27805.0,27804.0,0.79848176]
[1680565051320,0.01657411,27805.0,27804.0,1.17699362]
[1680565051537,0.01657411,27805.0,27804.0,1.29129362]
[1680565051750,0.01657411,27805.0,27804.0,0.88478176]
[1680565052028,0.01657411,27805.0,27804.0,1.26148176]
[1680565052272,0.01657411,27805.0,27804.0,1.53571176]
[1680565052520,0.01657411,27805.0,27804.0,1.70724622]
[1680565052744,0.01657411,27805.0,27804.0,1.83622596]
[1680565052962,7.411e-05,27805.0,27804.0,2.13622596]
[1680565053178,7.411e-05,27805.0,27804.0,2.00724622]
[1680565053391,4.11e-06,27805.0,27804.0,2.00724622]
[1680565053634,4.11e-06,27805.0,27804.0,2.25501844]
[1680565054072,4.11e-06,27805.0,27804.0,2.22701844]
[1680565054234,4.11e-06,27805.0,27804.0,2.25501844]
[1680565054458,4.11e-06,27805.0,27804.0,2.04308622]
[1680565054696,4.11e-06,27805.0,27804.0,2.01508622]
[1680565054898,4.11e-06,27805.0,27804.0,2.04308622]
[1680565055106,4.11e-06,27805.0,27804.0,2.01508622]
[1680565055305,4.11e-06,27805.0,27804.0,2.22287622]
[1680565055504,4.11e-06,27805.0,27804.0,2.54947622]
[1680565055839,4.11e-06,27805.0,27804.0,2.56187398]
[1680565056050,4.11e-06,27805.0,27804.0,2.58987398]
[1680565056726,4.11e-06,27805.0,27804.0,2.76169952]
[1680565057613,4.11e-06,27805.0,27804.0,2.43459952]
[1680565058564,4.11e-06,27805.0,27804.0,2.2226673]
[1680565059655,0.21356306,27820.0,27808.0,0.3767]
[1680565059878,0.0003,27819.0,27817.0,0.55644]
[1680565060100,0.01402787,27819.0,27817.0,0.40863356]
[1680565060323,0.02288,27821.0,27817.0,1.02813356]
[1680565060544,0.02288,27821.0,27817.0,1.02663356]
[1680565060757,0.02288,27821.0,27817.0,1.16507492]
[1680565060973,0.02288,27821.0,27817.0,1.16495492]
[1680565061200,0.02288,27821.0,27817.0,1.17357492]
[1680565061406,0.02288,27821.0,27817.0,1.11591492]
[1680565061622,0.02288,27821.0,27817.0,1.11597492]
[1680565061848,0.02288,27821.0,27817.0,1.23791492]
[1680565062060,0.02288,27821.0,27817.0,1.59793808]
[1680565062304,0.02288,27821.0,27817.0,1.59787808]
[1680565062537,0.02288,27821.0,27817.0,1.26603492]
[1680565062779,0.02288,27821.0,27817.0,1.26579492]
[1680565062996,0.02288,27821.0,27817.0,1.72289152]
[1680565063209,0.02288,27821.0,27817.0,1.72325152]
[1680565063423,0.02288,27821.0,27817.0,1.72319152]
[1680565063677,0.02288,27821.0,27817.0,1.26609492]
[1680565063888,0.02288,27821.0,27817.0,1.26603492]
[1680565064109,0.02288,27821.0,27817.0,1.26579492]
[1680565064328,0.02288,27821.0,27817.0,1.62499046]
[1680565064551,0.02288,27821.0,27817.0,1.62486828]
[1680565064754,0.02288,27821.0,27817.0,1.61618828]
[1680565064966,0.0393103,27821.0,27817.0,1.61660828]
[1680565065187,0.0393103,27821.0,27817.0,1.61690828]
[1680565065401,0.0393103,27821.0,27817.0,1.61654828]
[1680565065614,0.02288,27821.0,27817.0,1.61654828]
[1680565065826,0.02288,27821.0,27817.0,1.58824828]
[1680565066050,0.02288,27821.0,27817.0,1.58836828]
[1680565066305,0.02288,27821.0,27817.0,1.79648828]
[1680565066526,0.02288,27821.0,27817.0,1.79654828]
[1680565066742,0.02288,27821.0,27817.0,1.79648828]
[1680565066948,0.02288,27821.0,27817.0,1.79642828]
[1680565067162,0.02288,27821.0,27817.0,1.79648828]
[1680565067375,0.02288,27821.0,27817.0,1.79654828]
[1680565067604,0.02288,27821.0,27817.0,1.79648828]
[1680565068029,0.02288,27821.0,27817.0,1.79642828]
[1680565068240,0.02288,27821.0,27817.0,1.43705274]
[1680565068439,0.02288,27821.0,27817.0,1.84375283]
[1680565068648,0.02288,27821.0,27817.0,1.84387283]
[1680565068865,0.02288,27821.0,27817.0,1.84381283]
[1680565069078,0.02288,27821.0,27817.0,1.84387283]
[1680565069278,0.02288,27821.0,27817.0,1.84381283]
[1680565069473,0.02288,27821.0,27817.0,1.84387283]
[1680565069692,0.02288,27821.0,27817.0,1.84357283]
[1680565069948,0.02288,27821.0,27817.0,1.84351283]
[1680565070166,0.02288,27821.0,27817.0,1.44525274]
[1680565070368,0.02288,27821.0,27817.0,1.83738481]
[1680565070574,0.02288,27821.0,27817.0,1.83756481]
[1680565070797,0.02288,27821.0,27817.0,1.83750481]
[1680565071418,0.01715123,27820.0,27817.0,1.30242481]
[1680565071625,0.02288,27821.0,27817.0,1.30290481]
[1680565071839,0.02288,27821.0,27817.0,1.30278481]
[1680565072052,0.02288,27821.0,27817.0,1.42472481]
[1680565072269,0.02288,27821.0,27817.0,1.45266481]
[1680565072512,0.02288,27821.0,27817.0,1.42466481]
[1680565072724,0.02288,27821.0,27817.0,1.45260481]
[1680565072947,0.02288,27821.0,27817.0,1.45254481]
[1680565073159,0.02288,27821.0,27817.0,1.53185274]
[1680565073374,0.02288,27821.0,27817.0,1.93603531]
[1680565073588,0.02288,27821.0,27817.0,1.99993531]
[1680565073806,0.02288,27821.0,27817.0,1.97199531]
[1680565074021,0.02288,27821.0,27817.0,1.99173531]
[1680565074459,0.03938337,27821.0,27817.0,1.49289531]
[1680565074700,0.02309,27822.0,27817.0,1.43771274]
[1680565074916,0.02309,27822.0,27821.0,0.73141056]
[1680565074917,0.02288,27822.0,27821.0,0.73141056]
[1680565075154,0.02288,27822.0,27821.0,1.21894499]
[1680565075384,0.02288,27822.0,27821.0,1.018608]
[1680565075619,0.02288,27822.0,27821.0,1.018488]
[1680565075836,0.02288,27822.0,27821.0,1.57135724]
[1680565076057,0.09605011,27822.0,27821.0,1.59091724]
[1680565076279,0.09605011,27822.0,27821.0,1.49162924]
[1680565076567,0.09605011,27822.0,27821.0,1.49198924]
[1680565076794,0.09605011,27822.0,27821.0,1.49180924]
[1680565077641,0.09605011,27822.0,27821.0,1.49174924]
[1680565077879,0.09605011,27822.0,27821.0,1.49168924]
[1680565078113,0.09605011,27822.0,27821.0,1.49174924]
[1680565078545,0.09605011,27822.0,27821.0,1.51980924]
[1680565078757,0.09605011,27822.0,27821.0,1.51974924]